Workbook

Sheet ФинЧасть (hidden)
A1: Командировка продавца-кассира с 04.06 по 19.06 Елена Бузмакова 8-900-375-86-64 (Ср 30000) ЕКБ Белинского В ФОТ для бюджета на выезд (Ср.ЗП)*1,5 =45000+ндфл 2243 (за месячную норму часов+переработки)
A2: Командировка ЗУМ с 04.06 по 19.06 Ксения Распопина 8-922-210-34-46 (Ср 39000) ЕКБ Белинского В ФОТ для бюджета на выезд (Ср.ЗП)*1,5 =58500+ндфл 2550 (за месячную норму часов+переработки)
A3: Командировка продавца с ... по ... Крокодилов Сергей Иванович 8-900-041-65-94(Ср 29100), ЕКБ Гранат, В ФОТ для бюджета на выезд (Ср.ЗП)*1,5=43650+ндфл 2243 руб (за месячную норму часов+переработки)
A4: Командировка Ст. кладовщик с 27.05 по 17.06 Фазилов Илья Ибрагимович 8-963-446-15-63(Ср 31500), ЕКБ Грибоедова, В ФОТ для бюджета на выезд (Ср.ЗП)*1,5=47250+ндфл 2691 руб (за месячную норму часов+переработки)
A5: Командировка кладовщик с ... по ... Грачев Игорь Михайлович 8-977-287-21-88(Ср 34900), МСК Мытищи Селезнева, В ФОТ для бюджета на выезд (Ср.ЗП)*1,5=52350+ндфл 1950 руб (за месячную норму часов+переработки)
A6: Командировка ЗУМ с 27.05 по 17.06 Давыдова Наталья Игоревна 8-901-71-51-499(Ср 48500) МСК Одинцово В ФОТ для бюджета на выезд Ср.ЗП*1,5 =72750+ндфл 2845 руб(за месячную норму часов+переработки)
A7: Командировка Ст. кассира с 08.06 по 17.06 Бондаренко Александра Леонидовна 8-982-649-60-66(Ср 32000) ЕКБ Гранат В ФОТ для бюджета на выезд Ср.ЗП*1,5 =24000+ндфл 2550(за 88 часов) | F7: 88 | G7: =32000*F7/176*1.5 -> 24000
A8: Командировка Ст. кассира с 25.08 по 08.09 Шелковникова Татьяна Павловна 8-919-766-50-10(Ср 42530) МСК Раменское Михалевича В ФОТ для бюджета на выезд Ср.ЗП*1,5 = 55821 + ндфл 2600(за 154 час) | E8: 14 | F8: =E8*11 -> 154 | G8: =42530*F8/176*1.5 -> 55820.625
A9: Командировка Ст. кассира с 04.06 по 17.06 Татьяна Храмова 8-982-611-41-75 (Ср 32000) ЕКБ Белинского В ФОТ для бюджета на выезд (Ср.ЗП)*1,5 =18000+ндфл 2550(за 66 часов) | F9: 66 | G9: =32000*F9/176*1.5 -> 18000
A10: Командировка ЗУМ с 04.06 по 19.06 Ильиных Евгений 8-982-638-62-01 (Ср 39000 ) ЕКБ Мегаполис В ФОТ для бюджета на выезд (Ср.ЗП)*1,5 =58500+ндфл 2550 (за месячную норму часов+переработки)
A11: Командировка ЗУМ с 04.06 по 19.06 Никита Ячменников 8-908-919-25-31 (Ср 39000) ЕКБ Бабушкина В ФОТ для бюджета на выезд (Ср.ЗП)*1,5 =58500+ндфл 2550 (за месячную норму часов+переработки)

Sheet Заявка РП
A1: =Формулы!A23 -> г. Москва ТЦ Ангара
A2: =Формулы!A24 -> Аренда учебного класса с 25.08 по 06.09 - 13 дней
A3: К командировкам всех сотрудников добавлен 2 дня - до и 1 день - после, на дорогу и заселение.
A4: =Формулы!A25 -> Командировка тренера №1 - с 24.08 по 06.09
A5: =Формулы!A26 -> Командировка тренера №2 - с 30.08 по 19.09
A6: Старт ап:
A7: =Формулы!A2 -> Командировка ЗУМ с 0 по 0 Сбродов Дмитрий, 8-987-843-14-45, (ср. 33000), ЕКБ Оренбург Салмышская , в ФОТ для бюджета на выезд (Ср.ЗП)*1,5 = 49500 + ндфл 1950 руб (за месячную норму часов+переработки)
A8: =Формулы!A3 -> Командировка ЗУМ с 07.08 по 25.08 Собянин Сергей Александрови, 8-908-904-44-51, (ср. 0), ЕКБ Екат Космонавтов Белка , в ФОТ для бюджета на выезд (Ср.ЗП)*1,5 = 0 + ндфл 0 руб (за месячную норму часов+переработки)
A9: =Формулы!A4 -> Командировка ЗУМ с 0 по 0 Невсевря Павел Викторович, 8-927-711-64-85, (ср. 0), ЕКБ Самара Вива Лэнд , в ФОТ для бюджета на выезд (Ср.ЗП)*1,5 = 0 + ндфл 0 руб (за месячную норму часов+переработки)
A10: =Формулы!A5 -> Командировка ЗУМ с 0 по 0 Карпова Екатерина Васильевна, 8-964-996-99-98, (ср. 0), ЕКБ Саратов ТЦ Хэппи Молл , в ФОТ для бюджета на выезд (Ср.ЗП)*1,5 = 0 + ндфл 0 руб (за месячную норму часов+переработки)
A11: =Формулы!A6 -> Командировка ЗУМ с 0 по 0 Гришакова Ольга, 8-905-836-63-06, (ср. 0), ЕКБ Челябинск Героев Танкограда , в ФОТ для бюджета на выезд (Ср.ЗП)*1,5 = 0 + ндфл 0 руб (за месячную норму часов+переработки)
A12: =Формулы!A7 -> Командировка Ст кассир с 0 по 0 Храмова Татьяна , 8-982-611-41-75, (ср. 34400), ЕКБ Белинского , в ФОТ для бюджета на выезд (Ср.ЗП)*1,5 = 439,772727272727 + ндфл 2210 руб (за месячную норму часов+переработки)
A13: =Формулы!A8 -> Командировка Ст кассир с 0 по 0 Шелковникова Татьяна, 8-919-766-50-10, (ср. 43920), МСК Раменское , в ФОТ для бюджета на выезд (Ср.ЗП)*1,5 = 0 + ндфл 2210 руб (за месячную норму часов+переработки)
A14: =Формулы!A9 -> Командировка Ст кассир с 0 по 0 Бондаренко Александра, 8-982-649-60-66, (ср. 34400), ЕКБ Гранат , в ФОТ для бюджета на выезд (Ср.ЗП)*1,5 = 25800 + ндфл 2210 руб (за месячную норму часов+переработки)
A15: =Формулы!A10 -> Командировка Ст. кассир с 0 по 0 Карташова Дарья, 8-960-820-08-24, (ср. 0), ЕКБ Самара ТЦ Мир , в ФОТ для бюджета на выезд (Ср.ЗП)*1,5 = 0 + ндфл 0 руб (за месячную норму часов+переработки)
A16: =Формулы!A11 -> Командировка Продавец-кассир с 0 по 0 Крокодилов Сергей, 8-900-041-65-94, (ср. 31200), ЕКБ Гранат , в ФОТ для бюджета на выезд (Ср.ЗП)*1,5 = 46800 + ндфл 1950 руб (за месячную норму часов+переработки)
A17: =Формулы!A12 -> Командировка Ст.кладовщик с 0 по 0 Фазилов Илхомжон, 8-963-446-15-63, (ср. 34400), ЕКБ Грибоедова , в ФОТ для бюджета на выезд (Ср.ЗП)*1,5 = 51600 + ндфл 2210 руб (за месячную норму часов+переработки)
A19: Дата | B19: Старшие кассиры, ЗУМы | C19: Продавцы – кассиры | D19: Кладовщики
A20: =ДанныеОткрытие!B6-1+1 -> 2019-08-24 | E20: Приезд тренера 1 | F20: =A1 -> г. Москва ТЦ Ангара
A21: =A20+1 -> 2019-08-25 | B21: Вводный курс. Рег. внешний вид магазина. Рег. внешний вид сотрудников. Рег. общения продавца с покупателем. Рег. общения кассира с покупателем. Рег. хранение товара на складе. Проверки тайный покупатель. Регламенты СБ – 6 регламентов. | F21: =A2 -> Аренда учебного класса с 25.08 по 06.09 - 13 дней
A22: =A21+1 -> 2019-08-26 | B22: Рег. работы с браком. Рег. списания товара. Рег. Продажа товара с дефектом. Рег. Ценовые категории товара. Виды ценников и правила их размещения в ТЗ. | F22: =A3 -> К командировкам всех сотрудников добавлен 2 дня - до и 1 день - после, на дорогу и заселение.
A23: 2019-08-27 | B23: Работа с ценовыми категориями товаров, смена промо, распродажа еденичек, 1-5-10. Работа со списками. Проверки КРО | F23: =A4 -> Командировка тренера №1 - с 24.08 по 06.09
A24: 2019-08-28 | B24: 1С: Базы 1С и обмены данными, интерфейс, номенклатура, печать ценников и стикеров, переоценки, отчет по остаткам и по движению товара. | F24: =A5 -> Командировка тренера №2 - с 30.08 по 19.09
A25: 2019-08-29 | B25: Инвентаризации. Повторение. | F25: =Формулы!B49 -> Первая поставка - 06.09
A26: 2019-08-30 | B26: выходной | C26: выходной | D26: выходной | E26: Приезд тренера 2 | F26: =Формулы!B50 -> Техническое открытие - 19.09
A27: 2019-08-31 | B27: Ассортимент, Касса для продавцов | F27: =Формулы!B51 -> Праздничное открытие - 28.09
A28: 2019-09-01 | B28: Мерчендайзинг
A29: 2019-09-02 | B29: Касса | C29: Касса | D29: Приемка товара. Возврат качеств. товара на Ц.С. Общие регл.склад детально + приемка товара. 1С: журналы кладовщика. (магазин)
A30: 2019-09-03 | B30: Касса | C30: Повторение | D30: Приемка товара. Возврат качеств. товара на Ц.С. Общие регл.склад детально + приемка товара. 1С: журналы кладовщика. (магазин)
A31: 2019-09-04 | B31: Касса | C31: Повторение, экзамен | D31: Повторение, экзамен
A32: 2019-09-05 | B32: Касса | C32: Приемка сборки ТО, разметка полок по залу | E32: Приезд старт-ап
A33: 2019-09-06 | B33: Экзамен | C33: Поставка товара -разгрузка, приемка | E33: Отъезд тренера 1
A34: 2019-09-07 | B34: Выкладка товара | C34: Выкладка товара | D34: Приемка товара
A35: 2019-09-08 | B35: Выкладка товара | C35: Выкладка товара | D35: Приемка товара
A36: 2019-09-09 | B36: Выкладка товара | C36: Выкладка товара | D36: Приемка товара
A37: 2019-09-10 | B37: Выкладка товара | C37: Выкладка товара | D37: Приемка товара
A38: 2019-09-11 | B38: Выкладка товара | C38: Выкладка товара | D38: Приемка товара
A39: 2019-09-12 | B39: Выкладка товара | C39: Выкладка товара | D39: Приемка товара
A40: 2019-09-13 | B40: Выкладка товара | C40: Выкладка товара | D40: Приемка товара
A41: 2019-09-14 | B41: Выкладка товара | C41: Выкладка товара | D41: Приемка товара
A42: 2019-09-15 | B42: Выкладка товара | C42: Выкладка товара | D42: Приемка товара
A43: 2019-09-16 | B43: Выкладка товара | C43: Выкладка товара | D43: Приемка товара
A44: 2019-09-17 | B44: Выкладка товара | C44: Выкладка товара | D44: Приемка товара | E44: Приезд ст кассира старт ап
A45: 2019-09-18 | B45: Ценники, порядок в зале | C45: Ценники, порядок в зале | D45: Ценники, порядок в зале
A46: 2019-09-19 | B46: Техническое открытие
A47: 2019-09-20 | E47: Отъезд тренера 2
A48: 2019-09-21
A49: 2019-09-22
A50: 2019-09-23
A51: 2019-09-24
A52: 2019-09-25
A53: 2019-09-26 | B53: Праздничное открытие
A54: 2019-09-27 | E54: Отъезд старт-ап
A55: 2019-09-28
A56: 2019-09-29
A57: 2019-09-30
A58: 2019-10-01
A59: 2019-10-02
A60: 2019-10-03
A61: 2019-10-04
A62: 2019-10-05
A63: 2019-10-06
A64: 2019-10-07

Sheet Текст письмо РП
A1: ТЕМА | B1: =Формулы!B65 -> Данные по старт-ап команде г. Москва ТЦ Ангара
A2: ТЕКСТ | B2: =Формулы!A59 -> Во вложении файл с датами командировки в г. Москва старт-ап команды, ФИО участников и их расчетная часть з/п. К командировкам всех сотрудников добавлен 1 дня -до и 1 день -после, на дорогу и заселение, ст кассир приезжает на 1 день раньше тех открытия магазина для проверки готовности касс. Прошу сообщить о согласовании командировки данных участников.
A4: ИМЯ ФАЙЛА | B4: =Формулы!A52 -> г. Москва ТЦ Ангара

Sheet Для гр.Старт АП
A1: =Формулы!A29 -> Группа г. Москва Сбродов Дмитрий - 0 по 0 Собянин Сергей Александрови - 07.08 по 25.08 Невсевря Павел Викторович - 0 по 0 Карпова Екатерина Васильевна - 0 по 0 Гришакова Ольга - 0 по 0 Храмова Татьяна - 0 по 0 Шелковникова Татьяна - 0 по 0 Бондаренко Александра - 0 по 0 Карташова Дарья - 0 по 0 Крокодилов Сергей - 0 по 0 Фазилов Илхомжон - 0 по 0 Первая поставка - 06.09 Техническое открытие - 19.09 Праздничное открытие - 28.09 Руководитель проекта - Яковенко Виктор, 8-982-600-0311 Тренер на обьекте - Федосеев Максим, 8-908-909-3147

Sheet Календарник
B1: ФИО | C1: Должность | D1: Город/Магазин | E1: Отпуск 1 Отпуск 2 | F1: 2018-06-01 | G1: 2018-06-02 | H1: 2018-06-03 | I1: 2018-06-04 | J1: 2018-06-05 | K1: 2018-06-06 | L1: 2018-06-07 | M1: 2018-06-08 | N1: 2018-06-09 | O1: 2018-06-10 | P1: 2018-06-11 | Q1: 2018-06-12 | R1: 2018-06-13 | S1: 2018-06-14 | T1: 2018-06-15 | U1: 2018-06-16 | V1: 2018-06-17 | W1: 2018-06-18 | X1: 2018-06-19 | Y1: 2018-06-20 | Z1: 2018-06-21 | AA1: 2018-06-22 | AB1: 2018-06-23 | AC1: 2018-06-24 | AD1: 2018-06-25 | AE1: 2018-06-26 | AF1: 2018-06-27 | AG1: 2018-06-28 | AH1: 2018-06-29 | AI1: 2018-06-30 | AJ1: 2018-07-01 | AK1: 2018-07-02 | AL1: 2018-07-03 | AM1: 2018-07-04 | AN1: 2018-07-05 | AO1: 2018-07-06 | AP1: 2018-07-07 | AQ1: 2018-07-08 | AR1: 2018-07-09 | AS1: 2018-07-10 | AT1: 2018-07-11 | AU1: 2018-07-12 | AV1: 2018-07-13 | AW1: 2018-07-14 | AX1: 2018-07-15 | AY1: 2018-07-16 | AZ1: 2018-07-17 | BA1: 2018-07-18 | BB1: 2018-07-19 | BC1: 2018-07-20 | BD1: 2018-07-21 | BE1: 2018-07-22 | BF1: 2018-07-23 | BG1: 2018-07-24 | BH1: 2018-07-25 | BI1: 2018-07-26 | BJ1: 2018-07-27 | BK1: 2018-07-28 | BL1: 2018-07-29 | BM1: 2018-07-30 | BN1: 2018-07-31 | BO1: 2018-08-01 | BP1: 2018-08-02 | BQ1: 2018-08-03 | BR1: 2018-08-04 | BS1: 2018-08-05 | BT1: 2018-08-06 | BU1: 2018-08-07 | BV1: 2018-08-08 | BW1: 2018-08-09 | BX1: 2018-08-10 | BY1: 2018-08-11 | BZ1: 2018-08-12 | CA1: 2018-08-13 | CB1: 2018-08-14 | CC1: 2018-08-15 | CD1: 2018-08-16 | CE1: 2018-08-17 | CF1: 2018-08-18 | CG1: 2018-08-19 | CH1: 2018-08-20 | CI1: 2018-08-21 | CJ1: 2018-08-22 | CK1: 2018-08-23 | CL1: 2018-08-24 | CM1: 2018-08-25 | CN1: 2018-08-26 | CO1: 2018-08-27 | CP1: 2018-08-28 | CQ1: 2018-08-29 | CR1: 2018-08-30 | CS1: 2018-08-31 | CT1: 2018-09-01 | CU1: 2018-09-02 | CV1: 2018-09-03 | CW1: 2018-09-04 | CX1: 2018-09-05 | CY1: 2018-09-06 | CZ1: 2018-09-07 | DA1: 2018-09-08 | DB1: 2018-09-09 | DC1: 2018-09-10 | DD1: 2018-09-11 | DE1: 2018-09-12 | DF1: 2018-09-13 | DG1: 2018-09-14 | DH1: 2018-09-15 | DI1: 2018-09-16 | DJ1: 2018-09-17 | DK1: 2018-09-18 | DL1: 2018-09-19 | DM1: 2018-09-20 | DN1: 2018-09-21 | DO1: 2018-09-22 | DP1: 2018-09-23 | DQ1: 2018-09-24 | DR1: 2018-09-25 | DS1: 2018-09-26 | DT1: 2018-09-27 | DU1: 2018-09-28 | DV1: 2018-09-29 | DW1: 2018-09-30 | DX1: 2018-10-01 | DY1: 2018-10-02 | DZ1: 2018-10-03 | EA1: 2018-10-04 | EB1: 2018-10-05 | EC1: 2018-10-06 | ED1: 2018-10-07 | EE1: 2018-10-08 | EF1: 2018-10-09 | EG1: 2018-10-10 | EH1: 2018-10-11 | EI1: 2018-10-12 | EJ1: 2018-10-13 | EK1: 2018-10-14 | EL1: 2018-10-15 | EM1: 2018-10-16 | EN1: 2018-10-17 | EO1: 2018-10-18 | EP1: 2018-10-19 | EQ1: 2018-10-20 | ER1: 2018-10-21 | ES1: 2018-10-22 | ET1: 2018-10-23 | EU1: 2018-10-24 | EV1: 2018-10-25 | EW1: 2018-10-26 | EX1: 2018-10-27 | EY1: 2018-10-28 | EZ1: 2018-10-29 | FA1: 2018-10-30 | FB1: 2018-10-31 | FC1: 2018-11-01 | FD1: 2018-11-02 | FE1: 2018-11-03 | FF1: 2018-11-04 | FG1: 2018-11-05 | FH1: 2018-11-06 | FI1: 2018-11-07 | FJ1: 2018-11-08 | FK1: 2018-11-09 | FL1: 2018-11-10 | FM1: 2018-11-11 | FN1: 2018-11-12 | FO1: 2018-11-13 | FP1: 2018-11-14 | FQ1: 2018-11-15 | FR1: 2018-11-16 | FS1: 2018-11-17 | FT1: 2018-11-18 | FU1: 2018-11-19 | FV1: 2018-11-20 | FW1: 2018-11-21 | FX1: 2018-11-22 | FY1: 2018-11-23 | FZ1: 2018-11-24 | GA1: 2018-11-25 | GB1: 2018-11-26 | GC1: 2018-11-27 | GD1: 2018-11-28 | GE1: 2018-11-29 | GF1: 2018-11-30 | GG1: 2018-12-01 | GH1: 2018-12-02 | GI1: 2018-12-03 | GJ1: 2018-12-04 | GK1: 2018-12-05 | GL1: 2018-12-06 | GM1: 2018-12-07 | GN1: 2018-12-08 | GO1: 2018-12-09 | GP1: 2018-12-10 | GQ1: 2018-12-11 | GR1: 2018-12-12 | GS1: 2018-12-13 | GT1: 2018-12-14 | GU1: 2018-12-15 | GV1: 2018-12-16 | GW1: 2018-12-17 | GX1: 2018-12-18 | GY1: 2018-12-19 | GZ1: 2018-12-20 | HA1: 2018-12-21 | HB1: 2018-12-22 | HC1: 2018-12-23 | HD1: 2018-12-24 | HE1: 2018-12-25 | HF1: 2018-12-26 | HG1: 2018-12-27 | HH1: 2018-12-28 | HI1: 2018-12-29 | HJ1: 2018-12-30 | HK1: 2018-12-31 | HL1: 2019-01-01 | HM1: 2019-01-02 | HN1: 2019-01-03 | HO1: 2019-01-04 | HP1: 2019-01-05 | HQ1: 2019-01-06 | HR1: 2019-01-07 | HS1: 2019-01-08 | HT1: 2019-01-09 | HU1: 2019-01-10 | HV1: 2019-01-11 | HW1: 2019-01-12 | HX1: 2019-01-13 | HY1: 2019-01-14 | HZ1: 2019-01-15 | IA1: 2019-01-16 | IB1: 2019-01-17 | IC1: 2019-01-18 | ID1: 2019-01-19 | IE1: 2019-01-20 | IF1: 2019-01-21 | IG1: 2019-01-22 | IH1: 2019-01-23 | II1: 2019-01-24 | IJ1: 2019-01-25 | IK1: 2019-01-26 | IL1: 2019-01-27 | IM1: 2019-01-28 | IN1: 2019-01-29 | IO1: 2019-01-30 | IP1: 2019-01-31 | IQ1: 2019-02-01 | IR1: 2019-02-02 | IS1: 2019-02-03 | IT1: 2019-02-04 | IU1: 2019-02-05 | IV1: 2019-02-06 | IW1: 2019-02-07 | IX1: 2019-02-08 | IY1: 2019-02-09 | IZ1: 2019-02-10 | JA1: 2019-02-11 | JB1: 2019-02-12 | JC1: 2019-02-13 | JD1: 2019-02-14 | JE1: 2019-02-15 | JF1: 2019-02-16 | JG1: 2019-02-17 | JH1: 2019-02-18 | JI1: 2019-02-19 | JJ1: 2019-02-20 | JK1: 2019-02-21 | JL1: 2019-02-22 | JM1: 2019-02-23 | JN1: 2019-02-24 | JO1: 2019-02-25 | JP1: 2019-02-26 | JQ1: 2019-02-27 | JR1: 2019-02-28 | JS1: 2019-03-01 | JT1: 2019-03-02 | JU1: 2019-03-03 | JV1: 2019-03-04 | JW1: 2019-03-05 | JX1: 2019-03-06 | JY1: 2019-03-07 | JZ1: 2019-03-08 | KA1: 2019-03-09 | KB1: 2019-03-10 | KC1: 2019-03-11 | KD1: 2019-03-12 | KE1: 2019-03-13 | KF1: 2019-03-14 | KG1: 2019-03-15 | KH1: 2019-03-16 | KI1: 2019-03-17 | KJ1: 2019-03-18 | KK1: 2019-03-19 | KL1: 2019-03-20 | KM1: 2019-03-21 | KN1: 2019-03-22 | KO1: 2019-03-23 | KP1: 2019-03-24 | KQ1: 2019-03-25 | KR1: 2019-03-26 | KS1: 2019-03-27 | KT1: 2019-03-28 | KU1: 2019-03-29 | KV1: 2019-03-30 | KW1: 2019-03-31 | KX1: 2019-04-01 | KY1: 2019-04-02 | KZ1: 2019-04-03 | LA1: 2019-04-04 | LB1: 2019-04-05 | LC1: 2019-04-06 | LD1: 2019-04-07 | LE1: 2019-04-08 | LF1: 2019-04-09 | LG1: 2019-04-10 | LH1: 2019-04-11 | LI1: 2019-04-12 | LJ1: 2019-04-13 | LK1: 2019-04-14 | LL1: 2019-04-15 | LM1: 2019-04-16 | LN1: 2019-04-17 | LO1: 2019-04-18 | LP1: 2019-04-19 | LQ1: 2019-04-20 | LR1: 2019-04-21 | LS1: 2019-04-22 | LT1: 2019-04-23 | LU1: 2019-04-24 | LV1: 2019-04-25 | LW1: 2019-04-26 | LX1: 2019-04-27 | LY1: 2019-04-28 | LZ1: 2019-04-29 | MA1: 2019-04-30 | MB1: 2019-05-01 | MC1: 2019-05-02 | MD1: 2019-05-03 | ME1: 2019-05-04 | MF1: 2019-05-05 | MG1: 2019-05-06 | MH1: 2019-05-07 | MI1: 2019-05-08 | MJ1: 2019-05-09 | MK1: 2019-05-10 | ML1: 2019-05-11 | MM1: 2019-05-12 | MN1: 2019-05-13 | MO1: 2019-05-14 | MP1: 2019-05-15 | MQ1: 2019-05-16 | MR1: 2019-05-17 | MS1: 2019-05-18 | MT1: 2019-05-19 | MU1: 2019-05-20 | MV1: 2019-05-21 | MW1: 2019-05-22 | MX1: 2019-05-23 | MY1: 2019-05-24 | MZ1: 2019-05-25 | NA1: 2019-05-26 | NB1: 2019-05-27 | NC1: 2019-05-28 | ND1: 2019-05-29 | NE1: 2019-05-30 | NF1: 2019-05-31 | NG1: 2019-06-01 | NH1: 2019-06-02 | NI1: 2019-06-03 | NJ1: 2019-06-04 | NK1: 2019-06-05 | NL1: 2019-06-06 | NM1: 2019-06-07 | NN1: 2019-06-08 | NO1: 2019-06-09 | NP1: 2019-06-10 | NQ1: 2019-06-11 | NR1: 2019-06-12 | NS1: 2019-06-13 | NT1: 2019-06-14 | NU1: 2019-06-15 | NV1: 2019-06-16 | NW1: 2019-06-17 | NX1: 2019-06-18 | NY1: 2019-06-19 | NZ1: 2019-06-20 | OA1: 2019-06-21 | OB1: 2019-06-22 | OC1: 2019-06-23 | OD1: 2019-06-24 | OE1: 2019-06-25 | OF1: 2019-06-26 | OG1: 2019-06-27 | OH1: 2019-06-28 | OI1: 2019-06-29 | OJ1: 2019-06-30 | OK1: 2019-07-01 | OL1: 2019-07-02 | OM1: 2019-07-03 | ON1: 2019-07-04 | OO1: 2019-07-05 | OP1: 2019-07-06 | OQ1: 2019-07-07 | OR1: 2019-07-08 | OS1: 2019-07-09 | OT1: 2019-07-10 | OU1: 2019-07-11 | OV1: 2019-07-12 | OW1: 2019-07-13 | OX1: 2019-07-14 | OY1: 2019-07-15 | OZ1: 2019-07-16 | PA1: 2019-07-17 | PB1: 2019-07-18 | PC1: 2019-07-19 | PD1: 2019-07-20 | PE1: 2019-07-21 | PF1: 2019-07-22 | PG1: 2019-07-23 | PH1: 2019-07-24 | PI1: 2019-07-25 | PJ1: 2019-07-26 | PK1: 2019-07-27 | PL1: 2019-07-28 | PM1: 2019-07-29 | PN1: 2019-07-30 | PO1: 2019-07-31 | PP1: 2019-08-01 | PQ1: 2019-08-02 | PR1: 2019-08-03 | PS1: 2019-08-04 | PT1: 2019-08-05 | PU1: 2019-08-06 | PV1: 2019-08-07 | PW1: 2019-08-08 | PX1: 2019-08-09 | PY1: 2019-08-10 | PZ1: 2019-08-11 | QA1: 2019-08-12 | QB1: 2019-08-13 | QC1: 2019-08-14 | QD1: 2019-08-15 | QE1: 2019-08-16 | QF1: 2019-08-17 | QG1: 2019-08-18 | QH1: 2019-08-19 | QI1: 2019-08-20 | QJ1: 2019-08-21 | QK1: 2019-08-22 | QL1: 2019-08-23 | QM1: 2019-08-24 | QN1: 2019-08-25 | QO1: 2019-08-26 | QP1: 2019-08-27 | QQ1: 2019-08-28 | QR1: 2019-08-29 | QS1: 2019-08-30 | QT1: 2019-08-31 | QU1: 2019-09-01 | QV1: 2019-09-02 | QW1: 2019-09-03 | QX1: 2019-09-04 | QY1: 2019-09-05 | QZ1: 2019-09-06 | RA1: 2019-09-07 | RB1: 2019-09-08 | RC1: 2019-09-09 | RD1: 2019-09-10 | RE1: 2019-09-11 | RF1: 2019-09-12 | RG1: 2019-09-13 | RH1: 2019-09-14 | RI1: 2019-09-15 | RJ1: 2019-09-16 | RK1: 2019-09-17 | RL1: 2019-09-18 | RM1: 2019-09-19 | RN1: 2019-09-20 | RO1: 2019-09-21 | RP1: 2019-09-22 | RQ1: 2019-09-23 | RR1: 2019-09-24 | RS1: 2019-09-25 | RT1: 2019-09-26 | RU1: 2019-09-27 | RV1: 2019-09-28 | RW1: 2019-09-29 | RX1: 2019-09-30 | RY1: 2019-10-01 | RZ1: 2019-10-02 | SA1: 2019-10-03 | SB1: 2019-10-04 | SC1: 2019-10-05 | SD1: 2019-10-06 | SE1: 2019-10-07 | SF1: 2019-10-08 | SG1: 2019-10-09 | SH1: 2019-10-10 | SI1: 2019-10-11 | SJ1: 2019-10-12 | SK1: 2019-10-13 | SL1: 2019-10-14 | SM1: 2019-10-15 | SN1: 2019-10-16 | SO1: 2019-10-17 | SP1: 2019-10-18 | SQ1: 2019-10-19 | SR1: 2019-10-20 | SS1: 2019-10-21 | ST1: 2019-10-22 | SU1: 2019-10-23 | SV1: 2019-10-24 | SW1: 2019-10-25 | SX1: 2019-10-26 | SY1: 2019-10-27 | SZ1: 2019-10-28 | TA1: 2019-10-29 | TB1: 2019-10-30 | TC1: 2019-10-31 | TD1: 2019-11-01 | TE1: 2019-11-02 | TF1: 2019-11-03 | TG1: 2019-11-04 | TH1: 2019-11-05 | TI1: 2019-11-06 | TJ1: 2019-11-07 | TK1: 2019-11-08 | TL1: 2019-11-09 | TM1: 2019-11-10 | TN1: 2019-11-11 | TO1: 2019-11-12 | TP1: 2019-11-13 | TQ1: 2019-11-14 | TR1: 2019-11-15 | TS1: 2019-11-16 | TT1: 2019-11-17 | TU1: 2019-11-18 | TV1: 2019-11-19 | TW1: 2019-11-20 | TX1: 2019-11-21 | TY1: 2019-11-22 | TZ1: 2019-11-23 | UA1: 2019-11-24 | UB1: 2019-11-25 | UC1: 2019-11-26 | UD1: 2019-11-27 | UE1: 2019-11-28 | UF1: 2019-11-29 | UG1: 2019-11-30 | UH1: 2019-12-01 | UI1: 2019-12-02 | UJ1: 2019-12-03 | UK1: 2019-12-04 | UL1: 2019-12-05 | UM1: 2019-12-06 | UN1: 2019-12-07 | UO1: 2019-12-08 | UP1: 2019-12-09 | UQ1: 2019-12-10 | UR1: 2019-12-11 | US1: 2019-12-12 | UT1: 2019-12-13 | UU1: 2019-12-14 | UV1: 2019-12-15 | UW1: 2019-12-16 | UX1: 2019-12-17 | UY1: 2019-12-18 | UZ1: 2019-12-19 | VA1: 2019-12-20 | VB1: 2019-12-21 | VC1: 2019-12-22 | VD1: 2019-12-23 | VE1: 2019-12-24 | VF1: 2019-12-25 | VG1: 2019-12-26 | VH1: 2019-12-27 | VI1: 2019-12-28 | VJ1: 2019-12-29 | VK1: 2019-12-30 | VL1: 2019-12-31
A2: 1 | B2: =ДанныеПерсонал!B2 -> Сбродов Дмитрий | C2: =ДанныеПерсонал!C2 -> ЗУМ | D2: =ДанныеПерсонал!E2 -> ЕКБ Оренбург Салмышская | F2: Барнаул | I2: Обучение Стажера | BO2: ОТПуСК | QY2: Москва ТЦ Ангара
A3: 2 | B3: =ДанныеПерсонал!B3 -> Собянин Сергей Александрови | C3: =ДанныеПерсонал!C3 -> ЗУМ | D3: =ДанныеПерсонал!E3 -> ЕКБ Екат Космонавтов Белка | I3: Пермь ТЦ Земляника | AR3: ОТПУСК | CT3: Орск ТЦ Универмаг
A4: 3 | B4: =ДанныеПерсонал!B4 -> Невсевря Павел Викторович | C4: =ДанныеПерсонал!C4 -> ЗУМ | D4: =ДанныеПерсонал!E4 -> ЕКБ Самара Вива Лэнд | J4: Пермь ТЦ Земляника | AN4: ОТПУСК ЗА СВОЙ СЧЕТ
B5: =ДанныеПерсонал!B5 -> Карпова Екатерина Васильевна | C5: =ДанныеПерсонал!C5 -> ЗУМ | D5: =ДанныеПерсонал!E5 -> ЕКБ Саратов ТЦ Хэппи Молл | NG5: Исключен из старт апа
B6: =ДанныеПерсонал!B6 -> Гришакова Ольга | C6: =ДанныеПерсонал!C6 -> ЗУМ | D6: =ДанныеПерсонал!E6 -> ЕКБ Челябинск Героев Танкограда | GL6: Бузулук (едет как кладовщик) | MD6: 9 | ME6: 8 | MF6: 7 | MG6: 6 | MH6: 5 | MI6: 4 | MJ6: 3 | MK6: 2 | ML6: 1 | NH6: ОТПУСК | OB6: Бердск Меркурий | PN6: Кемерово пр.Октябрьский
A7: 4 | B7: =ДанныеПерсонал!B7 -> Храмова Татьяна | C7: =ДанныеПерсонал!C7 -> Ст кассир | D7: =ДанныеПерсонал!E7 -> ЕКБ Белинского | AJ7: Новокузнецк ТЦ Парус | CT7: ОТПУСК | EG7: Урай | KG7: Иркустк 2 | MD7: Искитим | MV7: ОТПУСК | OC7: Самара ТЦ Мир | OO7: Бердск Меркурий | PZ7: Кемерово пр.Октябрьский | RK7: Москва ТЦ Ангара
A8: 5 | B8: =ДанныеПерсонал!B8 -> Шелковникова Татьяна | C8: =ДанныеПерсонал!C8 -> Ст кассир | D8: =ДанныеПерсонал!E8 -> МСК Раменское | BV8: ОТПУСК | FL8: Сыктывкар | GZ8: Барнаул | MD8: ОТПУСК | OV8: Калуга ТЦ Семейный | QH8: ОТПУСК
A9: 6 | B9: =ДанныеПерсонал!B9 -> Бондаренко Александра | C9: =ДанныеПерсонал!C9 -> Ст кассир | D9: =ДанныеПерсонал!E9 -> ЕКБ Гранат | L9: Саратов ТЦ Сити-Молл | BO9: ОТПУСК | KK9: Барнаул 2 | ME9: НСК Тетрис | OH9: Балаково Оранж | PF9: Балаково ТЦ Грин Хаус | QE9: Барнаул ТЦ Район
A10: 7 | B10: =ДанныеПерсонал!B10 -> Карташова Дарья | C10: =ДанныеПерсонал!C10 -> Ст. кассир | D10: =ДанныеПерсонал!E10 -> ЕКБ Самара ТЦ Мир | F10: Саратов ТЦ Сити-Молл | AJ10: Новокузнецк ТЦ Парус | AX10: ОТПУСК | DU10: Урай | EY10: Сыктывкар | JY10: Барнаул 2 | LR10: НСК Тетрис | MM10: ОТПУСК | NU10: Балаково Оранж | OS10: Балаково ТЦ Грин Хаус | PS10: Барнаул ТЦ Район
A11: 8 | B11: =ДанныеПерсонал!B11 -> Крокодилов Сергей | C11: =ДанныеПерсонал!C11 -> Продавец-кассир | D11: =ДанныеПерсонал!E11 -> ЕКБ Гранат | I11: Пермь ТЦ Земляника | EV11: ОТПУСК | GM11: Барнаул | NF11: Горно Алтайск ТЦ Западный | NU11: Переезд В Новый Уренгой
A12: 9 | B12: =ДанныеПерсонал!B12 -> Фазилов Илхомжон | C12: =ДанныеПерсонал!C12 -> Ст.кладовщик | D12: =ДанныеПерсонал!E12 -> ЕКБ Грибоедова | F12: Саратов ТЦ Сити-Молл | BT12: ОТПУСК | CT12: Орск Универмаг | DU12: Урай | FR12: Саратов | IY12: Энегльс ТЦ Лидер | NU12: Балаково Оранж | OS12: Балаково ТЦ Грин Хаус | QY12: Москва ТЦ Ангара
A13: 10 | B13: =ДанныеПерсонал!B13 -> Афанасьев Кирилл | C13: =ДанныеПерсонал!C13 -> Ст.кладовщик | D13: =ДанныеПерсонал!E13 -> ЕКБ Краснолесье
A14: 11 | B14: =ДанныеПерсонал!B14 -> Астафьев Василий Павлович | C14: =ДанныеПерсонал!C14 -> Ст. кладовщик | D14: =ДанныеПерсонал!E14 -> ЕКБ Екат Дирижабль | F14: Новокузнецк ТЦ Сити-Молл | DC14: ОТПУСК | EY14: Сыктывкар | GM14: Барнаул | JT14: Иркутск 2 | LR14: НСК Тетрис | NP14: Самара ТЦ Мир | OL14: Калуга ТЦ Семейный
B15: =ДанныеПерсонал!B15 -> Дабрундашвили Ираклий Рамазович | C15: =ДанныеПерсонал!C15 -> Ст. кладовщик | D15: =ДанныеПерсонал!E15 -> ЕКБ Екат Мамина-Сибиряка | LQ15: Искитим | NF15: Горно Алтайск ТЦ Западный | OB15: Бердск Меркурий | PO15: Кемерово пр.Октябрьский
B16: =ДанныеПерсонал!B16 -> Грачев Игорь | C16: =ДанныеПерсонал!C16 -> Кладовщик | D16: =ДанныеПерсонал!E16 -> МСК Мытищи ТЦ Красный кит
B17: =ДанныеПерсонал!B17 -> 0 | C17: =ДанныеПерсонал!C17 -> 0 | D17: =ДанныеПерсонал!E17 -> 0
B18: =ДанныеПерсонал!B18 -> 0 | C18: =ДанныеПерсонал!C18 -> 0 | D18: =ДанныеПерсонал!E18 -> 0
B19: =ДанныеПерсонал!B19 -> 0 | C19: =ДанныеПерсонал!C19 -> 0 | D19: =ДанныеПерсонал!E19 -> 0
B20: =ДанныеПерсонал!B20 -> 0 | C20: =ДанныеПерсонал!C20 -> 0 | D20: =ДанныеПерсонал!E20 -> 0
NL23: НСК Новосибирская | OR23: 2 | OS23: Балаково ТЦ Грин Хаус | QY23: Москва ТЦ Ангара
NL24: Старт АП ищут сами | NY24: НСК Новосибирская | PE24: 1 | PF24: Балаково ТЦ Грин Хаус | RK24: Москва ТЦ Ангара
NP25: Самара ТЦ Мир | PM25: 2 | PN25: Кемерово пр.Октябрьский
NP26: Зума ищут сами | OC26: Самара ТЦ Мир | PY26: 1 | PZ26: Кемерово пр.Октябрьский
NT27: 2 | NU27: Балаково Оранж | PS27: Барнаул ТЦ Район
OG28: 1 | OH28: Балаково Оранж | QE28: Барнаул ТЦ Район
NT29: 0 | NU29: МСК Ангара | QF29: Орехово-Зуево ТЦ Капитолий
OG30: 1 | OH30: МСК Ангара | QR30: Орехово-Зуево ТЦ Капитолий
OA31: 2 | OB31: Бердск Меркурий | QI31: Новоалтайск ТЦ Альфа
ON32: 1 | OO32: Бердск Меркурий | QU32: Новоалтайск ТЦ Альфа
OI33: 1 | OJ33: Калуга ТЦ Семейный | QI33: МСК ТЦ Ангара
OU34: 1 | OV34: Калуга ТЦ Семейный | QU34: МСК ТЦ Ангара
QQ35: Ижевск ТЦ Матрица
RC36: Ижевск ТЦ Матрица

Sheet ДанныеОткрытие
A1: Город | B1: Москва
A2: ТЦ | B2: Ангара
A3: Нач. обуч. | B3: 25.08
A4: Кон. обуч. | B4: 06.09
A5: Кол-во дней | C5: =B4-B3+1 -> 13
A6: Приезд 1 тренера | B6: 24.08
A7: Уезд 1 тренера | B7: 06.09 | C7: =B7-B6+1 -> 14
A8: Приезд 2 тренера | B8: 30.08
A9: Уезд 2 тренера | B9: 19.09 | C9: =B9-B8+1 -> 21
A10: 1 Поставка | B10: 06.09
A11: ТО | B11: 19.09
A12: ПО | B12: 28.09
A13: РП | B13: Яковенко Виктор
A14: АГЗ | B14: Федосеев Максим

Sheet ДанныеПерсонал
A1: № | B1: ФИО | C1: Должность | D1: Телефон | E1: Город Магазин | F1: Начало коман- дировки | G1: Начало коман- дировки -1 день | H1: Конец коман- дировки | I1: Конец коман- дировки +1 день | J1: Сред. ЗП | K1: Коэф/ Часы | L1: Команд. ЗП | M1: НДФЛ
A2: =ROW(2:2)-1 -> 1 | B2: Сбродов Дмитрий | C2: ЗУМ | D2: 8-987-843-14-45 | E2: ЕКБ Оренбург Салмышская | J2: 33000 | K2: 1.5 | L2: =J2*K2 -> 49500 | M2: 1950
A3: =ROW(3:3)-1 -> 2 | B3: Собянин Сергей Александрови | C3: ЗУМ | D3: 8-908-904-44-51 | E3: ЕКБ Екат Космонавтов Белка | G3: 07.08 | I3: 25.08 | K3: 1.5 | L3: 0
A4: 3 | B4: Невсевря Павел Викторович | C4: ЗУМ | D4: 8-927-711-64-85 | E4: ЕКБ Самара Вива Лэнд | K4: 1.5 | L4: =J4*K4 -> 0
A5: 4 | B5: Карпова Екатерина Васильевна | C5: ЗУМ | D5: 8-964-996-99-98 | E5: ЕКБ Саратов ТЦ Хэппи Молл | K5: 1.5
A6: 5 | B6: Гришакова Ольга | C6: ЗУМ | D6: 8-905-836-63-06 | E6: ЕКБ Челябинск Героев Танкограда | K6: 1
A7: 6 | B7: Храмова Татьяна | C7: Ст кассир | D7: 8-982-611-41-75 | E7: ЕКБ Белинского | J7: 34400 | K7: 1.5 | L7: =J7*1.5/176*K7 -> 439.7727273 | M7: 2210
A8: 7 | B8: Шелковникова Татьяна | C8: Ст кассир | D8: 8-919-766-50-10 | E8: МСК Раменское | J8: 43920 | L8: =J8*1.5/176*K8 -> 0 | M8: 2210
A9: 8 | B9: Бондаренко Александра | C9: Ст кассир | D9: 8-982-649-60-66 | E9: ЕКБ Гранат | J9: 34400 | K9: 88 | L9: =J9*1.5/176*K9 -> 25800 | M9: 2210
A10: 9 | B10: Карташова Дарья | C10: Ст. кассир | D10: 8-960-820-08-24 | E10: ЕКБ Самара ТЦ Мир
A11: 10 | B11: Крокодилов Сергей | C11: Продавец-кассир | D11: 8-900-041-65-94 | E11: ЕКБ Гранат | J11: 31200 | K11: 1.5 | L11: =J11*K11 -> 46800 | M11: 1950
A12: 11 | B12: Фазилов Илхомжон | C12: Ст.кладовщик | D12: 8-963-446-15-63 | E12: ЕКБ Грибоедова | F12: 15.07 | J12: 34400 | K12: 1.5 | L12: =J12*K12 -> 51600 | M12: 2210
A13: 12 | B13: Афанасьев Кирилл | C13: Ст.кладовщик | D13: 8-950-640-28-32 | E13: ЕКБ Краснолесье | J13: 36000 | K13: 1.5 | L13: =J13*K13 -> 54000 | M13: 2210
A14: 13 | B14: Астафьев Василий Павлович | C14: Ст. кладовщик | D14: 8-953-383-01-57 | E14: ЕКБ Екат Дирижабль | K14: 1.5
A15: 14 | B15: Дабрундашвили Ираклий Рамазович | C15: Ст. кладовщик | D15: 8-900-204-22-68 | E15: ЕКБ Екат Мамина-Сибиряка | K15: 1.5
A16: 15 | B16: Грачев Игорь | C16: Кладовщик | D16: 8-977-287-21-88 | E16: МСК Мытищи ТЦ Красный кит | J16: 43500 | K16: 1.5 | L16: =J16*K16 -> 65250 | M16: 2600
A17: 16
A18: 17
A19: 18
A20: 19

Sheet Формулы
A1: Для ФинЧасти
A2: =CONCATENATE(B2," ",C2," ",D2," ",E2," ",F2," ",G2," ",I2,", ",J2,", ",K2," ",L2,M2," ",N2," ",O2," ",P2," ",Q2," ",R2," ",S2," ",T2," ",U2) -> Командировка ЗУМ с 0 по 0 Сбродов Дмитрий, 8-987-843-14-45, (ср. 33000), ЕКБ Оренбург Салмышская , в ФОТ для бюджета на выезд (Ср.ЗП)*1,5 = 49500 + ндфл 1950 руб (за месячную норму часов+переработки) | B2: Командировка | C2: =ДанныеПерсонал!C2 -> ЗУМ | D2: с | E2: =ДанныеПерсонал!G2 -> 00:00:00 | F2: по | G2: =ДанныеПерсонал!I2 -> 00:00:00 | I2: =ДанныеПерсонал!B2 -> Сбродов Дмитрий | J2: =ДанныеПерсонал!D2 -> 8-987-843-14-45 | K2: (ср. | L2: =ДанныеПерсонал!J2 -> 33000 | M2: ), | N2: =ДанныеПерсонал!E2 -> ЕКБ Оренбург Салмышская | O2: , | P2: в ФОТ для бюджета на выезд (Ср.ЗП)*1,5 = | Q2: =ДанныеПерсонал!L2 -> 49500 | R2: + ндфл | S2: =ДанныеПерсонал!M2 -> 1950 | T2: руб | U2: (за месячную норму часов+переработки)
A3: =CONCATENATE(B3," ",C3," ",D3," ",E3," ",F3," ",G3," ",I3,", ",J3,", ",K3," ",L3,M3," ",N3," ",O3," ",P3," ",Q3," ",R3," ",S3," ",T3," ",U3) -> Командировка ЗУМ с 07.08 по 25.08 Собянин Сергей Александрови, 8-908-904-44-51, (ср. 0), ЕКБ Екат Космонавтов Белка , в ФОТ для бюджета на выезд (Ср.ЗП)*1,5 = 0 + ндфл 0 руб (за месячную норму часов+переработки) | B3: Командировка | C3: =ДанныеПерсонал!C3 -> ЗУМ | D3: с | E3: =ДанныеПерсонал!G3 -> 07.08 | F3: по | G3: =ДанныеПерсонал!I3 -> 25.08 | I3: =ДанныеПерсонал!B3 -> Собянин Сергей Александрови | J3: =ДанныеПерсонал!D3 -> 8-908-904-44-51 | K3: (ср. | L3: =ДанныеПерсонал!J3 -> 0 | M3: ), | N3: =ДанныеПерсонал!E3 -> ЕКБ Екат Космонавтов Белка | O3: , | P3: в ФОТ для бюджета на выезд (Ср.ЗП)*1,5 = | Q3: =ДанныеПерсонал!L3 -> 0 | R3: + ндфл | S3: =ДанныеПерсонал!M3 -> 0 | T3: руб | U3: (за месячную норму часов+переработки)
A4: =CONCATENATE(B4," ",C4," ",D4," ",E4," ",F4," ",G4," ",I4,", ",J4,", ",K4," ",L4,M4," ",N4," ",O4," ",P4," ",Q4," ",R4," ",S4," ",T4," ",U4) -> Командировка ЗУМ с 0 по 0 Невсевря Павел Викторович, 8-927-711-64-85, (ср. 0), ЕКБ Самара Вива Лэнд , в ФОТ для бюджета на выезд (Ср.ЗП)*1,5 = 0 + ндфл 0 руб (за месячную норму часов+переработки) | B4: Командировка | C4: =ДанныеПерсонал!C4 -> ЗУМ | D4: с | E4: =ДанныеПерсонал!G4 -> 00:00:00 | F4: по | G4: =ДанныеПерсонал!I4 -> 00:00:00 | I4: =ДанныеПерсонал!B4 -> Невсевря Павел Викторович | J4: =ДанныеПерсонал!D4 -> 8-927-711-64-85 | K4: (ср. | L4: =ДанныеПерсонал!J4 -> 0 | M4: ), | N4: =ДанныеПерсонал!E4 -> ЕКБ Самара Вива Лэнд | O4: , | P4: в ФОТ для бюджета на выезд (Ср.ЗП)*1,5 = | Q4: =ДанныеПерсонал!L4 -> 0 | R4: + ндфл | S4: =ДанныеПерсонал!M4 -> 0 | T4: руб | U4: (за месячную норму часов+переработки)
A5: =CONCATENATE(B5," ",C5," ",D5," ",E5," ",F5," ",G5," ",I5,", ",J5,", ",K5," ",L5,M5," ",N5," ",O5," ",P5," ",Q5," ",R5," ",S5," ",T5," ",U5) -> Командировка ЗУМ с 0 по 0 Карпова Екатерина Васильевна, 8-964-996-99-98, (ср. 0), ЕКБ Саратов ТЦ Хэппи Молл , в ФОТ для бюджета на выезд (Ср.ЗП)*1,5 = 0 + ндфл 0 руб (за месячную норму часов+переработки) | B5: Командировка | C5: =ДанныеПерсонал!C5 -> ЗУМ | D5: с | E5: =ДанныеПерсонал!G5 -> 00:00:00 | F5: по | G5: =ДанныеПерсонал!I5 -> 00:00:00 | I5: =ДанныеПерсонал!B5 -> Карпова Екатерина Васильевна | J5: =ДанныеПерсонал!D5 -> 8-964-996-99-98 | K5: (ср. | L5: =ДанныеПерсонал!J5 -> 0 | M5: ), | N5: =ДанныеПерсонал!E5 -> ЕКБ Саратов ТЦ Хэппи Молл | O5: , | P5: в ФОТ для бюджета на выезд (Ср.ЗП)*1,5 = | Q5: =ДанныеПерсонал!L5 -> 0 | R5: + ндфл | S5: =ДанныеПерсонал!M5 -> 0 | T5: руб | U5: (за месячную норму часов+переработки) | V5: =ДанныеПерсонал!K7 -> 1.5 | W5: часов)
A6: =CONCATENATE(B6," ",C6," ",D6," ",E6," ",F6," ",G6," ",I6,", ",J6,", ",K6," ",L6,M6," ",N6," ",O6," ",P6," ",Q6," ",R6," ",S6," ",T6," ",U6) -> Командировка ЗУМ с 0 по 0 Гришакова Ольга, 8-905-836-63-06, (ср. 0), ЕКБ Челябинск Героев Танкограда , в ФОТ для бюджета на выезд (Ср.ЗП)*1,5 = 0 + ндфл 0 руб (за месячную норму часов+переработки) | B6: Командировка | C6: =ДанныеПерсонал!C6 -> ЗУМ | D6: с | E6: =ДанныеПерсонал!G6 -> 00:00:00 | F6: по | G6: =ДанныеПерсонал!I6 -> 00:00:00 | I6: =ДанныеПерсонал!B6 -> Гришакова Ольга | J6: =ДанныеПерсонал!D6 -> 8-905-836-63-06 | K6: (ср. | L6: =ДанныеПерсонал!J6 -> 0 | M6: ), | N6: =ДанныеПерсонал!E6 -> ЕКБ Челябинск Героев Танкограда | O6: , | P6: в ФОТ для бюджета на выезд (Ср.ЗП)*1,5 = | Q6: =ДанныеПерсонал!L6 -> 0 | R6: + ндфл | S6: =ДанныеПерсонал!M6 -> 0 | T6: руб | U6: (за месячную норму часов+переработки) | V6: =ДанныеПерсонал!K8 -> 0 | W6: часов)
A7: =CONCATENATE(B7," ",C7," ",D7," ",E7," ",F7," ",G7," ",I7,", ",J7,", ",K7," ",L7,M7," ",N7," ",O7," ",P7," ",Q7," ",R7," ",S7," ",T7," ",U7) -> Командировка Ст кассир с 0 по 0 Храмова Татьяна , 8-982-611-41-75, (ср. 34400), ЕКБ Белинского , в ФОТ для бюджета на выезд (Ср.ЗП)*1,5 = 439,772727272727 + ндфл 2210 руб (за месячную норму часов+переработки) | B7: Командировка | C7: =ДанныеПерсонал!C7 -> Ст кассир | D7: с | E7: =ДанныеПерсонал!G7 -> 00:00:00 | F7: по | G7: =ДанныеПерсонал!I7 -> 00:00:00 | I7: =ДанныеПерсонал!B7 -> Храмова Татьяна | J7: =ДанныеПерсонал!D7 -> 8-982-611-41-75 | K7: (ср. | L7: =ДанныеПерсонал!J7 -> 34400 | M7: ), | N7: =ДанныеПерсонал!E7 -> ЕКБ Белинского | O7: , | P7: в ФОТ для бюджета на выезд (Ср.ЗП)*1,5 = | Q7: =ДанныеПерсонал!L7 -> 439.7727273 | R7: + ндфл | S7: =ДанныеПерсонал!M7 -> 2210 | T7: руб | U7: (за месячную норму часов+переработки) | V7: =ДанныеПерсонал!K9 -> 88 | W7: часов)
A8: =CONCATENATE(B8," ",C8," ",D8," ",E8," ",F8," ",G8," ",I8,", ",J8,", ",K8," ",L8,M8," ",N8," ",O8," ",P8," ",Q8," ",R8," ",S8," ",T8," ",U8) -> Командировка Ст кассир с 0 по 0 Шелковникова Татьяна, 8-919-766-50-10, (ср. 43920), МСК Раменское , в ФОТ для бюджета на выезд (Ср.ЗП)*1,5 = 0 + ндфл 2210 руб (за месячную норму часов+переработки) | B8: Командировка | C8: =ДанныеПерсонал!C8 -> Ст кассир | D8: с | E8: =ДанныеПерсонал!G8 -> 00:00:00 | F8: по | G8: =ДанныеПерсонал!I8 -> 00:00:00 | I8: =ДанныеПерсонал!B8 -> Шелковникова Татьяна | J8: =ДанныеПерсонал!D8 -> 8-919-766-50-10 | K8: (ср. | L8: =ДанныеПерсонал!J8 -> 43920 | M8: ), | N8: =ДанныеПерсонал!E8 -> МСК Раменское | O8: , | P8: в ФОТ для бюджета на выезд (Ср.ЗП)*1,5 = | Q8: =ДанныеПерсонал!L8 -> 0 | R8: + ндфл | S8: =ДанныеПерсонал!M8 -> 2210 | T8: руб | U8: (за месячную норму часов+переработки)
A9: =CONCATENATE(B9," ",C9," ",D9," ",E9," ",F9," ",G9," ",I9,", ",J9,", ",K9," ",L9,M9," ",N9," ",O9," ",P9," ",Q9," ",R9," ",S9," ",T9," ",U9) -> Командировка Ст кассир с 0 по 0 Бондаренко Александра, 8-982-649-60-66, (ср. 34400), ЕКБ Гранат , в ФОТ для бюджета на выезд (Ср.ЗП)*1,5 = 25800 + ндфл 2210 руб (за месячную норму часов+переработки) | B9: Командировка | C9: =ДанныеПерсонал!C9 -> Ст кассир | D9: с | E9: =ДанныеПерсонал!G9 -> 00:00:00 | F9: по | G9: =ДанныеПерсонал!I9 -> 00:00:00 | I9: =ДанныеПерсонал!B9 -> Бондаренко Александра | J9: =ДанныеПерсонал!D9 -> 8-982-649-60-66 | K9: (ср. | L9: =ДанныеПерсонал!J9 -> 34400 | M9: ), | N9: =ДанныеПерсонал!E9 -> ЕКБ Гранат | O9: , | P9: в ФОТ для бюджета на выезд (Ср.ЗП)*1,5 = | Q9: =ДанныеПерсонал!L9 -> 25800 | R9: + ндфл | S9: =ДанныеПерсонал!M9 -> 2210 | T9: руб | U9: (за месячную норму часов+переработки)
A10: =CONCATENATE(B10," ",C10," ",D10," ",E10," ",F10," ",G10," ",I10,", ",J10,", ",K10," ",L10,M10," ",N10," ",O10," ",P10," ",Q10," ",R10," ",S10," ",T10," ",U10) -> Командировка Ст. кассир с 0 по 0 Карташова Дарья, 8-960-820-08-24, (ср. 0), ЕКБ Самара ТЦ Мир , в ФОТ для бюджета на выезд (Ср.ЗП)*1,5 = 0 + ндфл 0 руб (за месячную норму часов+переработки) | B10: Командировка | C10: =ДанныеПерсонал!C10 -> Ст. кассир | D10: с | E10: =ДанныеПерсонал!G10 -> 00:00:00 | F10: по | G10: =ДанныеПерсонал!I10 -> 00:00:00 | I10: =ДанныеПерсонал!B10 -> Карташова Дарья | J10: =ДанныеПерсонал!D10 -> 8-960-820-08-24 | K10: (ср. | L10: =ДанныеПерсонал!J10 -> 0 | M10: ), | N10: =ДанныеПерсонал!E10 -> ЕКБ Самара ТЦ Мир | O10: , | P10: в ФОТ для бюджета на выезд (Ср.ЗП)*1,5 = | Q10: =ДанныеПерсонал!L10 -> 0 | R10: + ндфл | S10: =ДанныеПерсонал!M10 -> 0 | T10: руб | U10: (за месячную норму часов+переработки)
A11: =CONCATENATE(B11," ",C11," ",D11," ",E11," ",F11," ",G11," ",I11,", ",J11,", ",K11," ",L11,M11," ",N11," ",O11," ",P11," ",Q11," ",R11," ",S11," ",T11," ",U11) -> Командировка Продавец-кассир с 0 по 0 Крокодилов Сергей, 8-900-041-65-94, (ср. 31200), ЕКБ Гранат , в ФОТ для бюджета на выезд (Ср.ЗП)*1,5 = 46800 + ндфл 1950 руб (за месячную норму часов+переработки) | B11: Командировка | C11: =ДанныеПерсонал!C11 -> Продавец-кассир | D11: с | E11: =ДанныеПерсонал!G11 -> 00:00:00 | F11: по | G11: =ДанныеПерсонал!I11 -> 00:00:00 | I11: =ДанныеПерсонал!B11 -> Крокодилов Сергей | J11: =ДанныеПерсонал!D11 -> 8-900-041-65-94 | K11: (ср. | L11: =ДанныеПерсонал!J11 -> 31200 | M11: ), | N11: =ДанныеПерсонал!E11 -> ЕКБ Гранат | O11: , | P11: в ФОТ для бюджета на выезд (Ср.ЗП)*1,5 = | Q11: =ДанныеПерсонал!L11 -> 46800 | R11: + ндфл | S11: =ДанныеПерсонал!M11 -> 1950 | T11: руб | U11: (за месячную норму часов+переработки)
A12: =CONCATENATE(B12," ",C12," ",D12," ",E12," ",F12," ",G12," ",I12,", ",J12,", ",K12," ",L12,M12," ",N12," ",O12," ",P12," ",Q12," ",R12," ",S12," ",T12," ",U12) -> Командировка Ст.кладовщик с 0 по 0 Фазилов Илхомжон, 8-963-446-15-63, (ср. 34400), ЕКБ Грибоедова , в ФОТ для бюджета на выезд (Ср.ЗП)*1,5 = 51600 + ндфл 2210 руб (за месячную норму часов+переработки) | B12: Командировка | C12: =ДанныеПерсонал!C12 -> Ст.кладовщик | D12: с | E12: =ДанныеПерсонал!G12 -> 00:00:00 | F12: по | G12: =ДанныеПерсонал!I12 -> 00:00:00 | I12: =ДанныеПерсонал!B12 -> Фазилов Илхомжон | J12: =ДанныеПерсонал!D12 -> 8-963-446-15-63 | K12: (ср. | L12: =ДанныеПерсонал!J12 -> 34400 | M12: ), | N12: =ДанныеПерсонал!E12 -> ЕКБ Грибоедова | O12: , | P12: в ФОТ для бюджета на выезд (Ср.ЗП)*1,5 = | Q12: =ДанныеПерсонал!L12 -> 51600 | R12: + ндфл | S12: =ДанныеПерсонал!M12 -> 2210 | T12: руб | U12: (за месячную норму часов+переработки)
A13: =CONCATENATE(B13," ",C13," ",D13," ",E13," ",F13," ",G13," ",I13,", ",J13,", ",K13," ",L13,M13," ",N13," ",O13," ",P13," ",Q13," ",R13," ",S13," ",T13," ",U13) -> Командировка Ст.кладовщик с 0 по 0 Афанасьев Кирилл, 8-950-640-28-32, (ср. 36000), ЕКБ Краснолесье , в ФОТ для бюджета на выезд (Ср.ЗП)*1,5 = 54000 + ндфл 2210 руб (за месячную норму часов+переработки) | B13: Командировка | C13: =ДанныеПерсонал!C13 -> Ст.кладовщик | D13: с | E13: =ДанныеПерсонал!G13 -> 00:00:00 | F13: по | G13: =ДанныеПерсонал!I13 -> 00:00:00 | I13: =ДанныеПерсонал!B13 -> Афанасьев Кирилл | J13: =ДанныеПерсонал!D13 -> 8-950-640-28-32 | K13: (ср. | L13: =ДанныеПерсонал!J13 -> 36000 | M13: ), | N13: =ДанныеПерсонал!E13 -> ЕКБ Краснолесье | O13: , | P13: в ФОТ для бюджета на выезд (Ср.ЗП)*1,5 = | Q13: =ДанныеПерсонал!L13 -> 54000 | R13: + ндфл | S13: =ДанныеПерсонал!M13 -> 2210 | T13: руб | U13: (за месячную норму часов+переработки)
A14: =CONCATENATE(B14," ",C14," ",D14," ",E14," ",F14," ",G14," ",I14,", ",J14,", ",K14," ",L14,M14," ",N14," ",O14," ",P14," ",Q14," ",R14," ",S14," ",T14," ",U14) -> Командировка Ст. кладовщик с 0 по 0 Астафьев Василий Павлович, 8-953-383-01-57, (ср. 0), ЕКБ Екат Дирижабль , в ФОТ для бюджета на выезд (Ср.ЗП)*1,5 = 0 + ндфл 0 руб (за месячную норму часов+переработки) | B14: Командировка | C14: =ДанныеПерсонал!C14 -> Ст. кладовщик | D14: с | E14: =ДанныеПерсонал!G14 -> 00:00:00 | F14: по | G14: =ДанныеПерсонал!I14 -> 00:00:00 | I14: =ДанныеПерсонал!B14 -> Астафьев Василий Павлович | J14: =ДанныеПерсонал!D14 -> 8-953-383-01-57 | K14: (ср. | L14: =ДанныеПерсонал!J14 -> 0 | M14: ), | N14: =ДанныеПерсонал!E14 -> ЕКБ Екат Дирижабль | O14: , | P14: в ФОТ для бюджета на выезд (Ср.ЗП)*1,5 = | Q14: =ДанныеПерсонал!L14 -> 0 | R14: + ндфл | S14: =ДанныеПерсонал!M14 -> 0 | T14: руб | U14: (за месячную норму часов+переработки)
A15: =CONCATENATE(B15," ",C15," ",D15," ",E15," ",F15," ",G15," ",I15,", ",J15,", ",K15," ",L15,M15," ",N15," ",O15," ",P15," ",Q15," ",R15," ",S15," ",T15," ",U15) -> Командировка Ст. кладовщик с 0 по 0 Дабрундашвили Ираклий Рамазович, 8-900-204-22-68, (ср. 0), ЕКБ Екат Мамина-Сибиряка , в ФОТ для бюджета на выезд (Ср.ЗП)*1,5 = 0 + ндфл 0 руб (за месячную норму часов+переработки) | B15: Командировка | C15: =ДанныеПерсонал!C15 -> Ст. кладовщик | D15: с | E15: =ДанныеПерсонал!G15 -> 00:00:00 | F15: по | G15: =ДанныеПерсонал!I15 -> 00:00:00 | I15: =ДанныеПерсонал!B15 -> Дабрундашвили Ираклий Рамазович | J15: =ДанныеПерсонал!D15 -> 8-900-204-22-68 | K15: (ср. | L15: =ДанныеПерсонал!J15 -> 0 | M15: ), | N15: =ДанныеПерсонал!E15 -> ЕКБ Екат Мамина-Сибиряка | O15: , | P15: в ФОТ для бюджета на выезд (Ср.ЗП)*1,5 = | Q15: =ДанныеПерсонал!L15 -> 0 | R15: + ндфл | S15: =ДанныеПерсонал!M15 -> 0 | T15: руб | U15: (за месячную норму часов+переработки)
A16: =CONCATENATE(B16," ",C16," ",D16," ",E16," ",F16," ",G16," ",I16,", ",J16,", ",K16," ",L16,M16," ",N16," ",O16," ",P16," ",Q16," ",R16," ",S16," ",T16," ",U16) -> Командировка Кладовщик с 0 по 0 Грачев Игорь, 8-977-287-21-88, (ср. 43500), МСК Мытищи ТЦ Красный кит , в ФОТ для бюджета на выезд (Ср.ЗП)*1,5 = 65250 + ндфл 2600 руб (за месячную норму часов+переработки) | B16: Командировка | C16: =ДанныеПерсонал!C16 -> Кладовщик | D16: с | E16: =ДанныеПерсонал!G16 -> 00:00:00 | F16: по | G16: =ДанныеПерсонал!I16 -> 00:00:00 | I16: =ДанныеПерсонал!B16 -> Грачев Игорь | J16: =ДанныеПерсонал!D16 -> 8-977-287-21-88 | K16: (ср. | L16: =ДанныеПерсонал!J16 -> 43500 | M16: ), | N16: =ДанныеПерсонал!E16 -> МСК Мытищи ТЦ Красный кит | O16: , | P16: в ФОТ для бюджета на выезд (Ср.ЗП)*1,5 = | Q16: =ДанныеПерсонал!L16 -> 65250 | R16: + ндфл | S16: =ДанныеПерсонал!M16 -> 2600 | T16: руб | U16: (за месячную норму часов+переработки)
A17: =CONCATENATE(B17," ",C17," ",D17," ",E17," ",F17," ",G17," ",I17,", ",J17,", ",K17," ",L17,M17," ",N17," ",O17," ",P17," ",Q17," ",R17," ",S17," ",T17," ",U17) -> Командировка 0 с 0 по 0 0, 0, (ср. 0), 0 , в ФОТ для бюджета на выезд (Ср.ЗП)*1,5 = 0 + ндфл 0 руб (за месячную норму часов+переработки) | B17: Командировка | C17: =ДанныеПерсонал!C17 -> 0 | D17: с | E17: =ДанныеПерсонал!G17 -> 00:00:00 | F17: по | G17: =ДанныеПерсонал!I17 -> 00:00:00 | I17: =ДанныеПерсонал!B17 -> 0 | J17: =ДанныеПерсонал!D17 -> 0 | K17: (ср. | L17: =ДанныеПерсонал!J17 -> 0 | M17: ), | N17: =ДанныеПерсонал!E17 -> 0 | O17: , | P17: в ФОТ для бюджета на выезд (Ср.ЗП)*1,5 = | Q17: =ДанныеПерсонал!L17 -> 0 | R17: + ндфл | S17: =ДанныеПерсонал!M17 -> 0 | T17: руб | U17: (за месячную норму часов+переработки)
A18: =CONCATENATE(B18," ",C18," ",D18," ",E18," ",F18," ",G18," ",I18,", ",J18,", ",K18," ",L18,M18," ",N18," ",O18," ",P18," ",Q18," ",R18," ",S18," ",T18," ",U18) -> Командировка 0 с 0 по 0 0, 0, (ср. 0), 0 , в ФОТ для бюджета на выезд (Ср.ЗП)*1,5 = 0 + ндфл 0 руб (за месячную норму часов+переработки) | B18: Командировка | C18: =ДанныеПерсонал!C18 -> 0 | D18: с | E18: =ДанныеПерсонал!G18 -> 00:00:00 | F18: по | G18: =ДанныеПерсонал!I18 -> 00:00:00 | I18: =ДанныеПерсонал!B18 -> 0 | J18: =ДанныеПерсонал!D18 -> 0 | K18: (ср. | L18: =ДанныеПерсонал!J18 -> 0 | M18: ), | N18: =ДанныеПерсонал!E18 -> 0 | O18: , | P18: в ФОТ для бюджета на выезд (Ср.ЗП)*1,5 = | Q18: =ДанныеПерсонал!L18 -> 0 | R18: + ндфл | S18: =ДанныеПерсонал!M18 -> 0 | T18: руб | U18: (за месячную норму часов+переработки)
A19: =CONCATENATE(B19," ",C19," ",D19," ",E19," ",F19," ",G19," ",I19,", ",J19,", ",K19," ",L19,M19," ",N19," ",O19," ",P19," ",Q19," ",R19," ",S19," ",T19," ",U19) -> Командировка 0 с 0 по 0 0, 0, (ср. 0), 0 , в ФОТ для бюджета на выезд (Ср.ЗП)*1,5 = 0 + ндфл 0 руб (за месячную норму часов+переработки) | B19: Командировка | C19: =ДанныеПерсонал!C19 -> 0 | D19: с | E19: =ДанныеПерсонал!G19 -> 00:00:00 | F19: по | G19: =ДанныеПерсонал!I19 -> 00:00:00 | I19: =ДанныеПерсонал!B19 -> 0 | J19: =ДанныеПерсонал!D19 -> 0 | K19: (ср. | L19: =ДанныеПерсонал!J19 -> 0 | M19: ), | N19: =ДанныеПерсонал!E19 -> 0 | O19: , | P19: в ФОТ для бюджета на выезд (Ср.ЗП)*1,5 = | Q19: =ДанныеПерсонал!L19 -> 0 | R19: + ндфл | S19: =ДанныеПерсонал!M19 -> 0 | T19: руб | U19: (за месячную норму часов+переработки)
A20: =CONCATENATE(B20," ",C20," ",D20," ",E20," ",F20," ",G20," ",I20,", ",J20,", ",K20," ",L20,M20," ",N20," ",O20," ",P20," ",Q20," ",R20," ",S20," ",T20," ",U20) -> Командировка 0 с 0 по 0 0, 0, (ср. 0), 0 , в ФОТ для бюджета на выезд (Ср.ЗП)*1,5 = 0 + ндфл 0 руб (за месячную норму часов+переработки) | B20: Командировка | C20: =ДанныеПерсонал!C20 -> 0 | D20: с | E20: =ДанныеПерсонал!G20 -> 00:00:00 | F20: по | G20: =ДанныеПерсонал!I20 -> 00:00:00 | I20: =ДанныеПерсонал!B20 -> 0 | J20: =ДанныеПерсонал!D20 -> 0 | K20: (ср. | L20: =ДанныеПерсонал!J20 -> 0 | M20: ), | N20: =ДанныеПерсонал!E20 -> 0 | O20: , | P20: в ФОТ для бюджета на выезд (Ср.ЗП)*1,5 = | Q20: =ДанныеПерсонал!L20 -> 0 | R20: + ндфл | S20: =ДанныеПерсонал!M20 -> 0 | T20: руб | U20: (за месячную норму часов+переработки)
A21: =CONCATENATE(B21," ",C21," ",D21," ",E21," ",F21," ",G21," ",I21,", ",J21,", ",K21," ",L21,M21," ",N21," ",O21," ",P21," ",Q21," ",R21," ",S21," ",T21," ",U21) -> Командировка 0 с 0 по 0 0, 0, (ср. 0), 0 , в ФОТ для бюджета на выезд (Ср.ЗП)*1,5 = 0 + ндфл 0 руб (за месячную норму часов+переработки) | B21: Командировка | C21: =ДанныеПерсонал!C21 -> 0 | D21: с | E21: =ДанныеПерсонал!G21 -> 00:00:00 | F21: по | G21: =ДанныеПерсонал!I21 -> 00:00:00 | I21: =ДанныеПерсонал!B21 -> 0 | J21: =ДанныеПерсонал!D21 -> 0 | K21: (ср. | L21: =ДанныеПерсонал!J21 -> 0 | M21: ), | N21: =ДанныеПерсонал!E21 -> 0 | O21: , | P21: в ФОТ для бюджета на выезд (Ср.ЗП)*1,5 = | Q21: =ДанныеПерсонал!L21 -> 0 | R21: + ндфл | S21: =ДанныеПерсонал!M21 -> 0 | T21: руб | U21: (за месячную норму часов+переработки)
A23: =CONCATENATE(B23," ",C23," ",D23, E23) -> г. Москва ТЦ Ангара | B23: г. | C23: =ДанныеОткрытие!B1 -> Москва | D23: ТЦ | E23: =ДанныеОткрытие!B2 -> Ангара
A24: =CONCATENATE(B24," ",C24," ",D24," ",E24," ",F24," ",G24," ",I24) -> Аренда учебного класса с 25.08 по 06.09 - 13 дней | B24: Аренда учебного класса с | C24: =ДанныеОткрытие!B3 -> 25.08 | D24: по | E24: =ДанныеОткрытие!B4 -> 06.09 | F24: - | G24: =ДанныеОткрытие!C5 -> 13 | I24: дней
A25: =CONCATENATE(B25," ",C25," ",D25," ",E25) -> Командировка тренера №1 - с 24.08 по 06.09 | B25: Командировка тренера №1 - с | C25: =ДанныеОткрытие!B6 -> 24.08 | D25: по | E25: =ДанныеОткрытие!B7 -> 06.09
A26: =CONCATENATE(B26," ",C26," ",D26," ",E26) -> Командировка тренера №2 - с 30.08 по 19.09 | B26: Командировка тренера №2 - с | C26: =ДанныеОткрытие!B8 -> 30.08 | D26: по | E26: =ДанныеОткрытие!B9 -> 19.09
A28: Для отправки в Whatsapp | I28: РП | J28: Телефон
A29: =CONCATENATE(B29,CHAR(10),B30,CHAR(10),B31,CHAR(10),B32,CHAR(10),B33,CHAR(10),B34,CHAR(10),B35,CHAR(10),B36,CHAR(10),B37,CHAR(10),B38,CHAR(10),B39,CHAR(10),B40,CHAR(10),B49,CHAR(10),B50,CHAR(10),B51,CHAR(10),B52,CHAR(10),B53) -> Группа г. Москва Сбродов Дмитрий - 0 по 0 Собянин Сергей Александрови - 07.08 по 25.08 Невсевря Павел Викторович - 0 по 0 Карпова Екатерина Васильевна - 0 по 0 Гришакова Ольга - 0 по 0 Храмова Татьяна - 0 по 0 Шелковникова Татьяна - 0 по 0 Бондаренко Александра - 0 по 0 Карташова Дарья - 0 по 0 Крокодилов Сергей - 0 по 0 Фазилов Илхомжон - 0 по 0 Первая поставка - 06.09 Техническое открытие - 19.09 Праздничное открытие - 28.09 Руководитель проекта - Яковенко Виктор, 8-982-600-0311 Тренер на обьекте - Федосеев Максим, 8-908-909-3147 | B29: =CONCATENATE(C29," ",D29) -> Группа г. Москва | C29: Группа г. | D29: =ДанныеОткрытие!B1 -> Москва
B30: =CONCATENATE(C30," ",D30," ",E30," ",F30, G30) -> Сбродов Дмитрий - 0 по 0 | C30: =ДанныеПерсонал!B2 -> Сбродов Дмитрий | D30: - | E30: =ДанныеПерсонал!G2 -> 0 | F30: по | G30: =ДанныеПерсонал!I2 -> 0 | I30: Акопов Андрей | J30: 8-922-038-8888
B31: =CONCATENATE(C31," ",D31," ",E31," ",F31, G31) -> Собянин Сергей Александрови - 07.08 по 25.08 | C31: =ДанныеПерсонал!B3 -> Собянин Сергей Александрови | D31: - | E31: =ДанныеПерсонал!G3 -> 07.08 | F31: по | G31: =ДанныеПерсонал!I3 -> 25.08 | I31: Босый Михаил | J31: 8-922-602-5273
B32: Невсевря Павел Викторович - 0 по 0 | C32: =ДанныеПерсонал!B4 -> Невсевря Павел Викторович | D32: - | E32: =ДанныеПерсонал!G4 -> 0 | F32: по | G32: =ДанныеПерсонал!I4 -> 0 | I32: Голосов Станислав | J32: 8-912-612-9662
B33: Карпова Екатерина Васильевна - 0 по 0 | C33: =ДанныеПерсонал!B5 -> Карпова Екатерина Васильевна | D33: - | E33: =ДанныеПерсонал!G5 -> 0 | F33: по | G33: =ДанныеПерсонал!I5 -> 0 | I33: Дубских Егор | J33: 8-922-128-6784 | K33: ( | L33: =ДанныеПерсонал!K7 -> 1.5 | M33: часов)
B34: Гришакова Ольга - 0 по 0 | C34: =ДанныеПерсонал!B6 -> Гришакова Ольга | D34: - | E34: =ДанныеПерсонал!G6 -> 0 | F34: по | G34: =ДанныеПерсонал!I6 -> 0 | I34: Леонов Павел | J34: 8-922-135-8060 | K34: ( | L34: =ДанныеПерсонал!K8 -> 0 | M34: часов)
B35: Храмова Татьяна - 0 по 0 | C35: =ДанныеПерсонал!B7 -> Храмова Татьяна | D35: - | E35: =ДанныеПерсонал!G7 -> 0 | F35: по | G35: =ДанныеПерсонал!I7 -> 0 | I35: Орел Дмитрий | J35: 8-912-607-6723 | K35: ( | L35: =ДанныеПерсонал!K9 -> 88 | M35: часов)
B36: Шелковникова Татьяна - 0 по 0 | C36: =ДанныеПерсонал!B8 -> Шелковникова Татьяна | D36: - | E36: =ДанныеПерсонал!G8 -> 0 | F36: по | G36: =ДанныеПерсонал!I8 -> 0 | I36: Панькин Евгений | J36: 8-922-209-4879
B37: Бондаренко Александра - 0 по 0 | C37: =ДанныеПерсонал!B9 -> Бондаренко Александра | D37: - | E37: =ДанныеПерсонал!G9 -> 0 | F37: по | G37: =ДанныеПерсонал!I9 -> 0 | I37: Переверзев Евгений | J37: 8-977-723-4221
B38: Карташова Дарья - 0 по 0 | C38: =ДанныеПерсонал!B10 -> Карташова Дарья | D38: - | E38: =ДанныеПерсонал!G10 -> 0 | F38: по | G38: =ДанныеПерсонал!I10 -> 0 | I38: Сергееев Дмитрий | J38: 8-903-080-8487
B39: Крокодилов Сергей - 0 по 0 | C39: =ДанныеПерсонал!B11 -> Крокодилов Сергей | D39: - | E39: =ДанныеПерсонал!G11 -> 0 | F39: по | G39: =ДанныеПерсонал!I11 -> 0 | I39: Чобанян Рафаэл | J39: 8-909-700-3470
B40: Фазилов Илхомжон - 0 по 0 | C40: =ДанныеПерсонал!B12 -> Фазилов Илхомжон | D40: - | E40: =ДанныеПерсонал!G12 -> 0 | F40: по | G40: =ДанныеПерсонал!I12 -> 0 | I40: Яковенко Виктор | J40: 8-982-600-0311
B41: Афанасьев Кирилл - 0 по 0 | C41: =ДанныеПерсонал!B13 -> Афанасьев Кирилл | D41: - | E41: =ДанныеПерсонал!G13 -> 0 | F41: по | G41: =ДанныеПерсонал!I13 -> 0
B42: Астафьев Василий Павлович - 0 по 0 | C42: =ДанныеПерсонал!B14 -> Астафьев Василий Павлович | D42: - | E42: =ДанныеПерсонал!G14 -> 0 | F42: по | G42: =ДанныеПерсонал!I14 -> 0 | I42: АГЗ
B43: Дабрундашвили Ираклий Рамазович - 0 по 0 | C43: =ДанныеПерсонал!B15 -> Дабрундашвили Ираклий Рамазович | D43: - | E43: =ДанныеПерсонал!G15 -> 0 | F43: по | G43: =ДанныеПерсонал!I15 -> 0
B44: Грачев Игорь - 0 по 0 | C44: =ДанныеПерсонал!B16 -> Грачев Игорь | D44: - | E44: =ДанныеПерсонал!G16 -> 0 | F44: по | G44: =ДанныеПерсонал!I16 -> 0 | I44: Ишметов Руслан | J44: 8-982-620-6300 | K44: 1
B45: 0 - 0 по 0 | C45: =ДанныеПерсонал!B17 -> 0 | D45: - | E45: =ДанныеПерсонал!G17 -> 0 | F45: по | G45: =ДанныеПерсонал!I17 -> 0 | I45: Крокодилов Алексей | J45: 8-932-608-6708 | K45: 2
B46: 0 - 0 по 0 | C46: =ДанныеПерсонал!B18 -> 0 | D46: - | E46: =ДанныеПерсонал!G18 -> 0 | F46: по | G46: =ДанныеПерсонал!I18 -> 0 | I46: Берсенев Дмитрий В. | J46: 8-952-726-6692 | K46: 3
B47: 0 - 0 по 0 | C47: =ДанныеПерсонал!B19 -> 0 | D47: - | E47: =ДанныеПерсонал!G19 -> 0 | F47: по | G47: =ДанныеПерсонал!I19 -> 0 | I47: Михайленко Сергей | J47: 8-953-384-9915 | K47: 4
B48: 0 - 0 по 0 | C48: =ДанныеПерсонал!B20 -> 0 | D48: - | E48: =ДанныеПерсонал!G20 -> 0 | F48: по | G48: =ДанныеПерсонал!I20 -> 0 | I48: Бабин Максим | J48: 8-912 624 2114 | K48: 5
B49: =CONCATENATE(C49," - ",D49) -> Первая поставка - 06.09 | C49: Первая поставка | D49: =ДанныеОткрытие!B10 -> 06.09 | I49: Заворин Михаил | J49: 8-982-608-0723 | K49: 6
B50: =CONCATENATE(C50," - ",D50) -> Техническое открытие - 19.09 | C50: Техническое открытие | D50: =ДанныеОткрытие!B11 -> 19.09 | I50: Черненко Андрей | J50: 8-922-125-3323 | K50: 7
A51: Название файла | B51: =CONCATENATE(C51," - ",D51) -> Праздничное открытие - 28.09 | C51: Праздничное открытие | D51: =ДанныеОткрытие!B12 -> 28.09 | I51: Резин Алексей | J51: 8-905-802-9922 | K51: 8
A52: =CONCATENATE("г. ",ДанныеОткрытие!B1," ",ДанныеОткрытие!A2," ",ДанныеОткрытие!B2) -> г. Москва ТЦ Ангара | B52: =CONCATENATE(C52," - ",D52,", ",E52) -> Руководитель проекта - Яковенко Виктор, 8-982-600-0311 | C52: Руководитель проекта | D52: =ДанныеОткрытие!B13 -> Яковенко Виктор | E52: =LOOKUP(D52,I28:I41,J28:J41) -> 8-982-600-0311 | I52: Петров Александр | J52: 8-919-459-2095 | K52: 9
B53: =CONCATENATE(C53," - ",D53,", ",E53) -> Тренер на обьекте - Федосеев Максим, 8-908-909-3147 | C53: Тренер на обьекте | D53: =ДанныеОткрытие!B14 -> Федосеев Максим | E53: =LOOKUP(D53,I44:I60,J44:J60) -> 8-908-909-3147 | I53: Иванов Иван | J53: 8-982 943 7431 | K53: 10
I54: Чернозипунников Максим | J54: 8-922-139-9109 | K54: 11
I55: Хамзин Сергей | J55: 8-982-734-5985 | K55: 12
I56: Федосеев Максим | J56: 8-908-909-3147 | K56: 13
I57: Железняк Илья | J57: 8-982-610-6408 | K57: 14
A58: Текст письмо РП | I58: Рожнов Андрей | J58: 8-909 008 8881 | K58: 15
A59: =CONCATENATE(B66,CHAR(10),B67) -> Во вложении файл с датами командировки в г. Москва старт-ап команды, ФИО участников и их расчетная часть з/п. К командировкам всех сотрудников добавлен 1 дня -до и 1 день -после, на дорогу и заселение, ст кассир приезжает на 1 день раньше тех открытия магазина для проверки готовности касс. Прошу сообщить о согласовании командировки данных участников. | I59: Бастриков Александр | J59: 8-904 949 0404 | K59: 16
I60: Шумских Игорь | J60: 8-963 007 0513 | K60: 17
D64: =ДанныеОткрытие!B1 -> Москва
B65: =CONCATENATE(C65," ", D64," ",E65," ",F65) -> Данные по старт-ап команде г. Москва ТЦ Ангара | C65: Данные по старт-ап команде г. | D65: =ДанныеОткрытие!B1 -> Москва | E65: ТЦ | F65: =ДанныеОткрытие!B2 -> Ангара
B66: =CONCATENATE(C66," ", D65," ",E66," ",F66) -> Во вложении файл с датами командировки в г. Москва старт-ап команды, ФИО участников и их расчетная часть з/п. К командировкам всех сотрудников добавлен 1 дня -до и 1 день -после, на дорогу и заселение, ст кассир приезжает на 1 день раньше тех открытия магазина для проверки готовности касс. | C66: Во вложении файл с датами командировки в г. | E66: старт-ап команды, ФИО участников и их расчетная часть з/п. К командировкам всех сотрудников добавлен 1 дня -до и 1 день -после, на дорогу и заселение, ст кассир приезжает на 1 день раньше тех открытия магазина для проверки готовности касс.
B67: Прошу сообщить о согласовании командировки данных участников.
